Cogmind - Beta 9.3 @@@ ROGUE MODE // 2019.12.18 @ 20:35:53 // Winter2019/RPGLIKE Player: Nalzok Result: Destroyed self with Rocket Launcher Performance ------------- Evolutions (1) 500 Regions Visited (4) 800 Robots Destroyed (12) 60 Value Destroyed (242) 242 Prototype IDs (0) 0 Alien Tech Used (0) 0 Bonus (137) 137 TOTAL SCORE: 1739 Bonus ------- High Alert Combat Kills 2 Follower Combat Kills 163 Friendly Fire -28 Cogmind --------- Core Integrity 0/600 Matter 234/300 Energy 275/275 System Corruption 0% Temperature Cool (0) Movement Walking (120) Location -9/Mines Parts ------- > --- POWER (1) -------- Deuterium Engine > --- PROPULSION (2) --- Aluminum Leg Aluminum Leg > --- UTILITY (1) ------ Advanced Terrain Scanner > --- WEAPON (1) ------- Rocket Launcher > --- INVENTORY (1) ---- Aluminum Leg Peak State ------------ > --- POWER ------------ Deuterium Engine > --- PROPULSION ------- Aluminum Leg Aluminum Leg > --- UTILITY ---------- Advanced Terrain Scanner > --- WEAPON ----------- Heavy Assault Rifle > --- INVENTORY -------- Aluminum Leg [Rating: 10] Favorites ----------- Power Light Ion Engine Engine Light Ion Engine Propulsion Aluminum Leg Leg Aluminum Leg Utility Structural Scanner Device Structural Scanner Weapon Assault Rifle Ballistic Gun Assault Rifle Launcher Rocket Launcher Build | -11 -10 -10 -9 -9 ------- Run | Scr Mat Min Mat Min Slots Evolved 1 | . . 1 . . Power . | . . . . . Propulsion 1 | . . 1 . . Utility . | . . . . . Weapon . | . . . . . Parts Attached 10 | . 3 2 4 1 Power 3 | . 1 . 2 . Engine 3 | . 1 . 2 . Core . | . . . . . Reactor . | . . . . . Propulsion 1 | . . 1 . . Treads . | . . . . . Leg 1 | . . 1 . . Wheel . | . . . . . Hover . | . . . . . Flight . | . . . . . Utility 2 | . . 1 1 . Device 2 | . . 1 1 . Storage . | . . . . . Processor . | . . . . . Hackware . | . . . . . Protection . | . . . . . Artifact . | . . . . . Weapon 4 | . 2 . 1 1 Energy Gun . | . . . . . Energy Cannon . | . . . . . Ballistic Gun 3 | . 2 . 1 . Ballistic Cannon . | . . . . . Launcher 1 | . . . . 1 Special Weapon . | . . . . . Impact Weapon . | . . . . . Slashing Weapon . | . . . . . Piercing Weapon . | . . . . . Special Melee Weapon . | . . . . . Unidentified Prototypes . | . . . . . Parts Lost . | . . . . . Power . | . . . . . Propulsion . | . . . . . Utility . | . . . . . Weapon . | . . . . . Highest Loss Streak . | . . . . . Average Slot Usage (%) 93 | . 75 90 99 100 Engine 21 | . 25 24 20 20 Leg 34 | . 25 25 40 40 Device 15 | . . 16 19 20 Ballistic Gun 21 | . 25 24 20 8 Naked Turns . | . . . . . Heaviest Build 14 | 4 5 6 13 14 Greatest Support 20 | 10 10 20 20 20 Greatest Overweight (x) . | . . . . . Average Overweight (x) . | . . . . . Largest Inventory Capacity 1 | . . 1 1 1 Average Capacity . | . . . 1 1 Most Carried 1 | . . 1 1 1 Average Carried . | . . . 1 1 Final Capacity 1 | . . 1 1 1 Final Carried 1 | . . 1 1 1 Class Distribution -------------------- 100% | Mutant Dominant Class ---------------- Mutant | -10/Materials Mutant | -10/Mines Mutant | -9/Materials Mutant | -9/Mines Resources | -11 -10 -10 -9 -9 ----------- Run | Scr Mat Min Mat Min Matter Collected 442 | 200 28 56 116 42 Remotely . | . . . . . Salvage Created 287 | . 43 . 228 16 Parts 25 | . 6 . 19 . Haulers Intercepted . | . . . . . Recyclers Shooed . | . . . . . Parts Field Recycled . | . . . . . Retrieved Matter . | . . . . . Parts Self-Destructed . | . . . . . Prevented . | . . . . . Kills | -11 -10 -10 -9 -9 ------- Run | Scr Mat Min Mat Min Combat Hostiles Destroyed 9 | . 3 . 6 . Guns 9 | . 3 . 6 . Classes Destroyed 4 | . 1 . 3 . Worker 1 | . . . 1 . Watcher 2 | . . . 2 . Swarmer 5 | . 3 . 2 . Grunt 4 | . . . 4 . Best Kill Streak 3 | . 3 . 3 . Combat Bots Only 3 | . 3 . 3 . Max Kills in Single Turn 1 | . 1 . 1 . Gunslinging . | . . . . . Exploded . | . . . . . Melee . | . . . . . Uniques/NPCs Destroyed . | . . . . . Combat | -11 -10 -10 -9 -9 -------- Run | Scr Mat Min Mat Min Damage Taken 1133 | . 199 72 182 680 Core 925 | . 159 58 145 563 Absorbed by Shields . | . . . . . Redirected to Core 682 | . 119 48 119 396 Core Remaining (%) 86 | 100 . 73 . . Volleys Fired 66 | . 19 5 33 9 Largest 1 | . 1 1 1 1 Hottest 33 | . 20 20 23 33 Shots Fired 66 | . 19 5 33 9 Gun 60 | . 19 5 33 3 Cannon . | . . . . . Launcher 6 | . . . . 6 Special . | . . . . . Kinetic 60 | . 19 5 33 3 Thermal . | . . . . . Explosive 6 | . . . . 6 Electromagnetic . | . . . . . Robot Hit Streak 10 | . 9 4 7 10 Robot Miss Streak 4 | . 4 1 4 1 Penetration Max . | . . . . . Secondary Targets . | . . . . . Shots Hit Robots 46 | . 13 4 22 7 Core Hits 30 | . 5 2 11 12 Critical Hits 1 | . 1 . . . Critical Kills 1 | . 1 . . . Critical Parts Destroyed . | . . . . . Melee Attacks . | . . . . . Impact . | . . . . . Slashing . | . . . . . Piercing . | . . . . . Sneak Attacks . | . . . . . Combat Hostiles . | . . . . . Follow-up Attacks . | . . . . . Damage Inflicted 795 | . 96 48 302 349 Guns 485 | . 96 48 302 39 Cannons . | . . . . . Explosions 310 | . . . . 310 Melee . | . . . . . Ramming . | . . . . . Kinetic 485 | . 96 48 302 39 Thermal . | . . . . . Explosive 310 | . . . . 310 Electromagnetic . | . . . . . Impact . | . . . . . Slashing . | . . . . . Piercing . | . . . . . Highest Corruption . | . . . . . Average Corruption . | . . . . . Corruption Purged . | . . . . . Overload Shots . | . . . . . Overflow Damage . | . . . . . Projectiles . | . . . . . Explosions . | . . . . . Melee . | . . . . . Knockbacks . | . . . . . Impact . | . . . . . Kinetic . | . . . . . Secondary . | . . . . . Self-Inflicted Damage 11 | . . . . 11 Shots 1 | . . . . 1 Rammed . | . . . . . Targets Rammed . | . . . . . Kicked . | . . . . . Crushed . | . . . . . Highest Temperature 14 | . . . . 14 Average Temperature 8 | . . . . 8 Received Heat Transfer 152 | . . 42 72 38 Siege Activations . | . . . . . Robots Corrupted . | . . . . . Combat Hostiles . | . . . . . Parts Fried . | . . . . . Impact Corruptions . | . . . . . Robots Melted . | . . . . . Combat Hostiles . | . . . . . Parts Melted . | . . . . . Heat Transferred . | . . . . . Parts Sabotaged . | . . . . . Parts Stolen . | . . . . . Parts Stripped . | . . . . . Power Chain Reactions . | . . . . . Missiles Intercepted . | . . . . . Alert | -11 -10 -10 -9 -9 ------- Run | Scr Mat Min Mat Min Peak Influence 498 | . 70 100 498 115 Average Influence 172 | . 36 36 294 71 Maximum Alert Level 2 | . . . 2 . Low Security (%) 58 | 100 100 100 21 100 Level 1 26 | . . . 49 . Level 2 15 | . . . 29 . Level 3 . | . . . . . Level 4 . | . . . . . Level 5 . | . . . . . High Security . | . . . . . Max Security . | . . . . . Squads Dispatched 3 | . . . 3 . Investigation . | . . . . . Extermination . | . . . . . Reinforcement 3 | . . . 3 . Assault . | . . . . . Garrison . | . . . . . Intercept . | . . . . . Construction Impeded . | . . . . . Haulers Reinforced . | . . . . . Stealth | -11 -10 -10 -9 -9 --------- Run | Scr Mat Min Mat Min Distress Signals 2 | . . . 2 . Communications Jammed . | . . . . . Distress Signals . | . . . . . Times Spotted 48 | . 4 2 20 22 Peak Tracking Total 20 | . 3 2 4 20 Tactical Retreats 2 | . . . 2 . Traps | -11 -10 -10 -9 -9 ------- Run | Scr Mat Min Mat Min Traps Triggered . | . . . . . Indirectly . | . . . . . Trap Hack Attempts . | . . . . . Triggered . | . . . . . Disarmed . | . . . . . Reprogrammed . | . . . . . Reused . | . . . . . Traps Extracted . | . . . . . Installed . | . . . . . Triggered . | . . . . . Machines | -11 -10 -10 -9 -9 ---------- Run | Scr Mat Min Mat Min Machines Disabled 1 | . . 1 . . Max in Single Turn . | . . . . . Machines Sabotaged . | . . . . . Garrisons Compromised . | . . . . . Overloaded Fab Kills . | . . . . . Fab Network Shutdowns . | . . . . . Hacking | -11 -10 -10 -9 -9 --------- Run | Scr Mat Min Mat Min Machines Accessed 1 | . . . 1 . Terminals 1 | . . . 1 . Fabricators . | . . . . . Repair Stations . | . . . . . Recycling Units . | . . . . . Scanalyzers . | . . . . . Garrison Access . | . . . . . Total Hacks 2 | . . . 2 . Successful 1 | . . . 1 . Failed 1 | . . . 1 . Catastrophic . | . . . . . Database Lockouts . | . . . . . Manual . | . . . . . Terminals 2 | . . . 2 . Fabricators . | . . . . . Repair Stations . | . . . . . Recycling Units . | . . . . . Scanalyzers . | . . . . . Garrison Access . | . . . . . Terminal Hacks 1 | . . . 1 . Branch Access Points 1 | . . . 1 . Fabricator Hacks . | . . . . . Repair Station Hacks . | . . . . . Recycling Unit Hacks . | . . . . . Scanalyzer . | . . . . . Garrison Access Hacks . | . . . . . Unauthorized Hacks . | . . . . . Terminals . | . . . . . Fabricators . | . . . . . Repair Stations . | . . . . . Recycling Units . | . . . . . Scanalyzers . | . . . . . Garrison Access . | . . . . . Data Cores Recovered . | . . . . . Used . | . . . . . Hacking Detections 1 | . . . 1 . Full Trace Events . | . . . . . Feedback Events . | . . . . . Feedback Blocked . | . . . . . Robot Schematics Acquired . | . . . . . Robots Built . | . . . . . Matter . | . . . . . Time . | . . . . . Total Robot Build Rating . | . . . . . Part Schematics Acquired . | . . . . . Parts Built . | . . . . . Matter . | . . . . . Time . | . . . . . Total Part Build Rating . | . . . . . Parts Repaired . | . . . . . Time . | . . . . . Parts Recycled . | . . . . . Recycled Matter . | . . . . . Retrieved Matter . | . . . . . Retrieved Components . | . . . . . Parts Scanalyzed . | . . . . . Part Schematics Acquired . | . . . . . Parts Damaged . | . . . . . Bothacking | -11 -10 -10 -9 -9 ------------ Run | Scr Mat Min Mat Min Used RIF Installer . | . . . . . Robots Hacked . | . . . . . Non-combat . | . . . . . Combat . | . . . . . Robot Hacks Applied . | . . . . . Relay Couplers Released . | . . . . . Robots Rewired . | . . . . . Allies Hacked . | . . . . . Hacks Repelled . | . . . . . Allies | -11 -10 -10 -9 -9 -------- Run | Scr Mat Min Mat Min Total Allies 3 | . . 3 . . Largest Group 3 | . . 3 3 3 Highest-Rated Group 40 | . . 40 40 40 Highest-Rated Ally 16 | . . 16 16 16 Total Orders . | . . . . . Ally Attacks 54 | . . 5 36 13 Total Damage 544 | . . 67 332 145 Kills 9 | . . 2 7 . Allies Corrupted . | . . . . . Allies Melted . | . . . . . Intel | -11 -10 -10 -9 -9 ------- Run | Scr Mat Min Mat Min Robot Analysis Total . | . . . . . Derelict Logs Recovered . | . . . . . Drone Launches . | . . . . . Drone Recoveries . | . . . . . Exploration | -11 -10 -10 -9 -9 ------------- Run | Scr Mat Min Mat Min Turns Passed 773 | 14 133 178 403 45 Spaces Moved 505 | 12 77 137 259 20 Core . | . . . . . Treads . | . . . . . Legs 505 | 12 77 137 259 20 Wheels . | . . . . . Hover . | . . . . . Flight . | . . . . . Fastest Speed 120 | 120 120 120 120 120 Average Speed 120 | 120 120 120 120 120 Slowest Speed 120 | 120 120 120 120 120 Overloaded Moves . | . . . . . Propulsion Burnouts . | . . . . . Robots Hopped . | . . . . . Cave-ins Triggered . | . . . . . Exploration Rate (%) 19 | 2 15 39 30 9 Regions Visited 4 Branch Regions 2 Pre-discovered Areas . | . . . . . Known Exits Taken 1 | . . . 1 . Unknown Exits Taken 3 | 1 1 1 . . Scrap Searched 2 | . . 2 . . Spaces Dug . | . . . . . Terrain Destroyed 40 | . . . . 40 Melee . | . . . . . Projectile . | . . . . . AOE 40 | . . . . 40 Actions | -11 -10 -10 -9 -9 --------- Run | Scr Mat Min Mat Min Total 612 | 11 104 144 319 34 Wait 3 | . . . 3 . Move 501 | 11 76 136 258 20 Hop . | . . . . . Pick Up 1 | . . 1 . . Fast Attach 5 | . . 2 2 1 Attach . | . . . . . Detach . | . . . . . Swap 5 | . 3 . 2 . Drop 8 | . 3 . 4 1 Fire 66 | . 19 5 33 9 Melee . | . . . . . Ram . | . . . . . Kick . | . . . . . Crush . | . . . . . Escape Stasis . | . . . . . Rewire 3 | . . . . 3 Trap . | . . . . . Miscellaneous 20 | . 3 . 17 . Route ------- -11/Scrapyard -10/Materials -10/Mines -9/Materials (discovered 2 exits: *Min / Sto) -9/Mines History --------- Turn | Location | Event 1 | -11/Scrapyard | Discovered new exit (range 1) 15 | -11/Scrapyard | Entered Materials 119 | -10/Materials | Discovered new exit (range 15) 148 | -10/Materials | Entered Mines 150 | -10/Mines | Assisted by bots powering up and referring to "LRC-V3" 289 | -10/Mines | Discovered new exit (range 15) 305 | -10/Mines | Build established: Mutant 307 | -10/Mines | Upgraded with Propulsion slot (x1) 326 | -10/Mines | Entered Materials 326 | -9/Materials | Accompanied by 3 allies 328 | -9/Materials | Reached level 2 370 | -9/Materials | Reached level 3 491 | -9/Materials | Identified exit to Mines 491 | -9/Materials | Identified exit to Storage 700 | -9/Materials | Reached level 4 729 | -9/Materials | Entered Mines 729 | -9/Mines | Accompanied by 3 allies 730 | -9/Mines | Assembled infested the area 736 | -9/Mines | Received a Rocket Launcher from a helpful Derelict 752 | -9/Mines | Met 8R-AWN 769 | -9/Mines | Core integrity fell below 50% 773 | -9/Mines | Core integrity fell below 20% 774 | -9/Mines | Destroyed self with Rocket Launcher Last Messages --------------- 00747_ as-92704 powers down. 00747_ as-48707 powers down. 00747_ Attempting to rewire as-48707. 00747_ as-48707 cannot be rewired. 00748_ Attempting to rewire as-48707. 00748_ as-48707 cannot be rewired. 00749_ Attempting to rewire as-48707. 00749_ as-48707 cannot be rewired. 8R-AWN: Hm, I'm not getting any readings that show these Assembled are different than what we have already... But you... you look interesting. Maybe they'll want to see you. Come along little bot, it's safer with us than out here, anyway. 00760_ as-82477 destroyed. 00760_ as-03815 destroyed. 00760_ as-24516 destroyed. 00760_ as-48707 destroyed. 00760_ as-92704 destroyed. 00764_ C-30 ARC bursts open, deploying its payload. 00764_ D-53 Grenadier unfolds itself. 00769_ The unstable cave ceiling collapses. Map ----- +----------------------------------------------------+ | | | | | | | | | | | | | | | | | | | | | | | | | | | | | ???????????????????????#?????????????????????????? | | ?????????#??????#????????????????????????????????? | | ??????#??????#### ????????#??????????????????????? | | ??????????#?## a% ???????????????#??#???????????? | | ?????? ???? ???????????????#?????????????? | | ??????????? a a ????##########??????????????? | | ???????????# a ##### ##??#??????????? | | ?????????????? ;# ##??????????#?? | | ?????????????????# #??#?????????? | | ????????????????#; # #????????#??????? | | ?????????????????# ##???????????????? | | ???????? ??#???#?# @ #???????????????? | | ????????????????### #?? ? ??????????? | | ???????????????# dd # ##???????????????? | | ????????????#?# ! ##??????? ????????? | | ?????????????# ????????????????? | | ?????????????# |#### #?? ????????????? | | ?????????????# #??? #???????????????? | | ?????????????## ###/ ##????#???????????????? | | ??????????????###???# ####?????????#???????????? | | ????????????????????## ##????????????????????????? | | ?????????????????????##??#????????#??????????????? | | ???????????????????????????#?????#???????????????? | | ?????????????????????#???????????#??#????????????? | | ?????????????????????????????????????????????????? | | ???????????????????#?????????????????????????????? | | ????????????????????????????? ????##???? ????????? | | ????????????????????????#????????????????????????? | | ???????????????????? ????????????????????????????? | | ?????????????????????????????????????????????????? | | ?????????????????????????????????????????????????? | | ?????????????????????????????????????????????????? | | ?????????????????????????????????????????????????? | | ?????????????????????????????????????????????????? | | ?????????????????????????????????????????????????? | | ?????????????????????????????????????????????????? | +----------------------------------------------------+ Best States ------------- Heat Dissipation 25 Energy Generation 14 Energy Capacity 275 Matter Stores 300 Matter Capacity 300 Sight Range 16 Terrain Scan Range 20 Terrain Scan Density 10 Evasion (%) 40 Item Schematics ----------------- None Robot Schematics ------------------ None Fabricated ------------ Nothing Alien Tech Used ----------------- None Achievements -------------- None Challenges ------------ None RPGLIKE | -11 -10 -10 -9 -9 --------- Run | Scr Mat Min Mat Min Levels Raised 3 | . . . 3 . XP Earned 8263 | 3000 350 894 3519 500 XP Spent 2950 | . . 2950 . . Upgrades 6 | . . 6 . . Propulsion Slot 1 | . . 1 . . Inventory Capacity 1 | . . 1 . . Ranged Accuracy 4 | . . 4 . . Protomatter Created 89 | . 20 . 71 -2 Integrity Restored 386 | . 60 . 326 . Core 322 | . 60 . 262 . Parts 64 | . . . 64 . Protomatter Decayed 20 | . . . 20 . Game ------ Seed GlidesysVortexDissipator Manual? 0 Play Time 00:07:53 Cumulative 201.8 hours Start 2019.12.17 @ 19:45:11 End 2019.12.18 @ 20:35:53 Sessions 2 Manual Loads 0 Difficulty Rogue Special Mode Winter2019/RPGLIKE Game No. 323 Rogue 322 Adventurer 0 Explorer 1 Win Type - Total 1 Types 1/0/0/0/0/0/0 Lore% 59 Gallery% 76 Achievement% 46 Wizard Run 0 Options --------- ASCII 1 Keyboard 1 Movement Vi Keybinds 0 Fullscreen 1 Font 14/Cog Map View 72x52 Tactical HUD 1 Map Filters NONE Filters LOW_CONTRAST(13,24,33) Steam 0 RUN: b25d38ca-6e52-48a3-bbe1-3b5187d6d039